[Event "Live Chess"]
[Site "Chess.com"]
[Date "2023.05.21"]
[Round "-"]
[White "LodeshChess"]
[Black "Pablo_dmp"]
[Result "0-1"]
[WhiteElo "1182"]
[BlackElo "1861"]
[TimeControl "300"]
[EndTime "19:11:00 PDT"]
[Termination "Pablo_dmp won by resignation"]

1. e4 {[%clk 0:04:45.1]} 1... c5 {[%clk 0:04:57.6]} 2. Nf3 {[%clk 0:04:43.3]}
2... Nc6 {[%clk 0:04:56.7]} 3. Bb5 {[%clk 0:04:41.6]} 3... g6 {[%clk 0:04:54.9]}
4. Bxc6 {[%clk 0:04:39.7]} 4... dxc6 {[%clk 0:04:54.8]} 5. d3 {[%clk 0:04:30.2]}
5... Bg7 {[%clk 0:04:53]} 6. h4 {[%clk 0:04:26.5]} 6... h5 {[%clk 0:04:49.7]} 7.
Be3 {[%clk 0:04:21.5]} 7... Bxb2 {[%clk 0:04:46.8]} 8. Nbd2 {[%clk 0:04:16.3]}
8... Bxa1 {[%clk 0:04:35.5]} 9. Qxa1 {[%clk 0:04:15.4]} 9... f6 {[%clk
0:04:25.4]} 10. Ng5 {[%clk 0:04:14.1]} 10... Nh6 {[%clk 0:04:13.8]} 11. Bxc5
{[%clk 0:04:10]} 11... O-O {[%clk 0:03:59.1]} 12. Ngf3 {[%clk 0:03:42.8]} 12...
Bg4 {[%clk 0:03:51.5]} 13. a4 {[%clk 0:03:40.7]} 13... b6 {[%clk 0:03:49.2]} 14.
Qa2+ {[%clk 0:03:37.5]} 14... Kg7 {[%clk 0:03:40.1]} 15. Bd4 {[%clk 0:03:32.6]}
15... e5 {[%clk 0:03:36]} 16. Bc3 {[%clk 0:03:06.1]} 16... Qe7 {[%clk
0:03:21.2]} 17. O-O {[%clk 0:02:43.7]} 17... c5 {[%clk 0:03:10.5]} 18. a5 {[%clk
0:02:13.4]} 18... Rfd8 {[%clk 0:03:01.6]} 19. axb6 {[%clk 0:02:07.5]} 19... axb6
{[%clk 0:03:01.5]} 20. Qb3 {[%clk 0:02:07]} 20... Qe6 {[%clk 0:02:52.4]} 21.
Qxe6 {[%clk 0:01:51.9]} 21... Bxe6 {[%clk 0:02:52.3]} 22. Rb1 {[%clk 0:01:45.6]}
22... Rd6 {[%clk 0:02:41.5]} 23. Nc4 {[%clk 0:01:43.9]} 23... Bxc4 {[%clk
0:02:38]} 24. dxc4 {[%clk 0:01:43.5]} 24... Ra4 {[%clk 0:02:35.1]} 25. g3 {[%clk
0:01:31.6]} 25... Rxc4 {[%clk 0:02:33.1]} 26. Bd2 {[%clk 0:01:24.5]} 26... Rxc2
{[%clk 0:02:17.3]} 27. Ra1 {[%clk 0:01:23.8]} 27... Rdxd2 {[%clk 0:02:05.8]} 28.
Nxd2 {[%clk 0:01:22.4]} 28... Rxd2 {[%clk 0:02:05.7]} 29. Ra7+ {[%clk
0:01:21.9]} 29... Nf7 {[%clk 0:02:03.2]} 30. Kf1 {[%clk 0:01:19.5]} 30... b5
{[%clk 0:02:01.6]} 31. Ke1 {[%clk 0:01:17.1]} 31... Rc2 {[%clk 0:01:56.9]} 32.
Rb7 {[%clk 0:01:15.5]} 32... b4 {[%clk 0:01:55.6]} 33. Rb5 {[%clk 0:01:14.7]}
33... Nd6 {[%clk 0:01:50.4]} 34. Rb6 {[%clk 0:01:12.5]} 34... Nxe4 {[%clk
0:01:47.2]} 35. Rb7+ {[%clk 0:01:11.6]} 35... Kf8 {[%clk 0:01:44.5]} 36. Kd1
{[%clk 0:01:09.7]} 36... Rxf2 {[%clk 0:01:40.3]} 0-1

[Event "Live Chess"]
[Site "Chess.com"]
[Date "2023.05.21"]
[Round "-"]
[White "GEMdzq"]
[Black "Olisingapore"]
[Result "1-0"]
[WhiteElo "2291"]
[BlackElo "1794"]
[TimeControl "300"]
[EndTime "19:11:36 PDT"]
[Termination "GEMdzq won by resignation"]

1. e4 {[%clk 0:04:58.6]} 1... c5 {[%clk 0:04:56.9]} 2. d4 {[%clk 0:04:57.2]}
2... cxd4 {[%clk 0:04:56]} 3. c3 {[%clk 0:04:56.5]} 3... dxc3 {[%clk 0:04:55.9]}
4. Nxc3 {[%clk 0:04:55.7]} 4... Nc6 {[%clk 0:04:55.6]} 5. Bc4 {[%clk 0:04:54.9]}
5... e6 {[%clk 0:04:55]} 6. Nf3 {[%clk 0:04:54.4]} 6... Nf6 {[%clk 0:04:46.9]}
7. Qe2 {[%clk 0:04:51.8]} 7... d5 {[%clk 0:04:44.4]} 8. exd5 {[%clk 0:04:49.7]}
8... Nb4 {[%clk 0:04:16.9]} 9. dxe6 {[%clk 0:04:37.4]} 9... Bxe6 {[%clk
0:04:15.3]} 10. Bb5+ {[%clk 0:04:32.4]} 10... Nc6 {[%clk 0:04:10.6]} 11. O-O
{[%clk 0:04:21]} 11... Be7 {[%clk 0:04:07.4]} 12. Rd1 {[%clk 0:04:20]} 12... Qc7
{[%clk 0:04:05.8]} 13. Nd4 {[%clk 0:04:14.2]} 13... Bd7 {[%clk 0:03:45.7]} 14.
Nxc6 {[%clk 0:04:11.3]} 14... bxc6 {[%clk 0:03:44.1]} 15. Bc4 {[%clk 0:04:08.5]}
15... Bg4 {[%clk 0:03:39.4]} 16. f3 {[%clk 0:04:03.7]} 16... Bh5 {[%clk
0:03:37.4]} 17. Re1 {[%clk 0:03:59.4]} 17... Kf8 {[%clk 0:03:28]} 18. Be3 {[%clk
0:03:35.8]} 18... Re8 {[%clk 0:03:25]} 19. Qf2 {[%clk 0:03:33.1]} 19... Bd6
{[%clk 0:03:18.6]} 20. Bc5 {[%clk 0:03:31.6]} 20... Bxc5 {[%clk 0:03:16.1]} 21.
Qxc5+ {[%clk 0:03:31.5]} 21... Kg8 {[%clk 0:03:14.1]} 22. Rxe8+ {[%clk 0:03:29]}
22... Nxe8 {[%clk 0:03:13]} 23. Re1 {[%clk 0:03:28.6]} 23... Nf6 {[%clk
0:03:10.6]} 24. Ne4 {[%clk 0:03:21]} 24... Nxe4 {[%clk 0:03:06.3]} 25. Rxe4
{[%clk 0:03:20.1]} 25... Qd7 {[%clk 0:03:00.9]} 26. Qxh5 {[%clk 0:03:13.2]}
26... Qd1+ {[%clk 0:02:58.1]} 27. Kf2 {[%clk 0:03:12.1]} 27... Qd2+ {[%clk
0:02:56.4]} 28. Kg3 {[%clk 0:03:09.9]} 28... Qd6+ {[%clk 0:02:54.1]} 29. Qe5
{[%clk 0:03:08.6]} 29... Qg6+ {[%clk 0:02:53]} 30. Kf2 {[%clk 0:03:07.4]} 30...
h6 {[%clk 0:02:47.5]} 31. Qe8+ {[%clk 0:03:04.5]} 31... Kh7 {[%clk 0:02:46.9]}
32. Qxf7 {[%clk 0:03:03.8]} 32... Qxf7 {[%clk 0:02:37.5]} 33. Bxf7 {[%clk
0:03:03.7]} 33... Rb8 {[%clk 0:02:35.4]} 34. Bb3 {[%clk 0:03:02.1]} 1-0

[Event "Live Chess"]
[Site "Chess.com"]
[Date "2023.05.21"]
[Round "-"]
[White "LutherSullivan"]
[Black "alanmike75"]
[Result "1-0"]
[WhiteElo "2111"]
[BlackElo "1591"]
[TimeControl "300"]
[EndTime "19:11:40 PDT"]
[Termination "LutherSullivan won by resignation"]

1. e4 {[%clk 0:04:58.3]} 1... e5 {[%clk 0:04:58.2]} 2. Nf3 {[%clk 0:04:56.6]}
2... Nc6 {[%clk 0:04:53.4]} 3. Bc4 {[%clk 0:04:56.1]} 3... Be7 {[%clk
0:04:51.8]} 4. d4 {[%clk 0:04:53.2]} 4... d6 {[%clk 0:04:47.4]} 5. dxe5 {[%clk
0:04:51.2]} 5... dxe5 {[%clk 0:04:39.3]} 6. Qxd8+ {[%clk 0:04:49.8]} 6... Bxd8
{[%clk 0:04:38.2]} 7. O-O {[%clk 0:04:44.3]} 7... Nge7 {[%clk 0:04:33.9]} 8. Nc3
{[%clk 0:04:28.3]} 8... O-O {[%clk 0:04:31.7]} 9. Nd5 {[%clk 0:04:23.9]} 9...
Be6 {[%clk 0:04:18.5]} 10. Nxe7+ {[%clk 0:03:02.1]} 10... Bxe7 {[%clk
0:04:15.8]} 11. Bxe6 {[%clk 0:03:01.7]} 11... fxe6 {[%clk 0:04:14.5]} 12. c3
{[%clk 0:02:57.9]} 12... h6 {[%clk 0:04:05]} 13. Be3 {[%clk 0:02:54.6]} 13... b6
{[%clk 0:04:02.8]} 14. Rad1 {[%clk 0:02:51.7]} 14... Rad8 {[%clk 0:03:52.7]} 15.
Rfe1 {[%clk 0:02:39.4]} 15... Bf6 {[%clk 0:03:45.9]} 16. Kf1 {[%clk 0:02:36.6]}
16... Na5 {[%clk 0:03:41.6]} 17. b3 {[%clk 0:02:33.2]} 17... c5 {[%clk
0:03:38.3]} 18. Ke2 {[%clk 0:02:30.5]} 18... Nc6 {[%clk 0:03:33.7]} 19. Nd2
{[%clk 0:02:22.5]} 19... Kf7 {[%clk 0:03:30.1]} 20. Nc4 {[%clk 0:02:17.4]} 20...
Ke7 {[%clk 0:03:23.1]} 21. a3 {[%clk 0:02:11.2]} 21... Rd7 {[%clk 0:03:11.8]}
22. Rxd7+ {[%clk 0:02:06.9]} 22... Kxd7 {[%clk 0:03:10.6]} 23. Rd1+ {[%clk
0:02:01.9]} 23... Kc7 {[%clk 0:03:07.8]} 24. b4 {[%clk 0:01:59.9]} 24... cxb4
{[%clk 0:03:04.6]} 25. axb4 {[%clk 0:01:56.7]} 25... Rd8 {[%clk 0:02:43.2]} 26.
Ra1 {[%clk 0:01:53.9]} 26... Kb7 {[%clk 0:02:32.5]} 27. b5 {[%clk 0:01:12]}
27... Ne7 {[%clk 0:02:06.3]} 28. Rxa7+ {[%clk 0:01:07.3]} 28... Kxa7 {[%clk
0:02:00.4]} 29. Bxb6+ {[%clk 0:01:06.8]} 29... Kb7 {[%clk 0:01:57.6]} 30. Bxd8
{[%clk 0:01:05]} 30... Ng6 {[%clk 0:01:49.7]} 31. Ba5 {[%clk 0:00:52.7]} 1-0

[Event "Live Chess"]
[Site "Chess.com"]
[Date "2023.05.21"]
[Round "-"]
[White "LiamBellwood"]
[Black "Conradical12"]
[Result "1-0"]
[WhiteElo "2029"]
[BlackElo "1650"]
[TimeControl "300"]
[EndTime "19:12:09 PDT"]
[Termination "LiamBellwood won by resignation"]

1. d4 {[%clk 0:04:59.2]} 1... d5 {[%clk 0:04:57]} 2. Nc3 {[%clk 0:04:58.9]} 2...
Nc6 {[%clk 0:04:55.3]} 3. Bf4 {[%clk 0:04:58.6]} 3... Nf6 {[%clk 0:04:53.5]} 4.
Nb5 {[%clk 0:04:57.8]} 4... e5 {[%clk 0:04:50.4]} 5. Bxe5 {[%clk 0:04:57.1]}
5... Nxe5 {[%clk 0:04:48.4]} 6. dxe5 {[%clk 0:04:57]} 6... c6 {[%clk 0:04:41.6]}
7. exf6 {[%clk 0:04:39.7]} 7... cxb5 {[%clk 0:04:38.8]} 8. e3 {[%clk 0:04:26.5]}
8... Qxf6 {[%clk 0:04:12]} 9. Bxb5+ {[%clk 0:04:11.2]} 9... Bd7 {[%clk
0:04:04.8]} 10. Bxd7+ {[%clk 0:04:10.3]} 10... Kxd7 {[%clk 0:04:03.5]} 11. Qxd5+
{[%clk 0:04:10.2]} 11... Bd6 {[%clk 0:03:59.4]} 12. Qxb7+ {[%clk 0:04:00.1]}
12... Ke6 {[%clk 0:03:58.2]} 13. Qe4+ {[%clk 0:03:56.9]} 13... Kd7 {[%clk
0:03:56.5]} 14. O-O-O {[%clk 0:03:45.6]} 14... Rab8 {[%clk 0:03:53]} 15. Qd4
{[%clk 0:03:42.3]} 15... Qe6 {[%clk 0:03:44.7]} 16. Kb1 {[%clk 0:03:39]} 16...
Rhc8 {[%clk 0:03:38.9]} 17. Nf3 {[%clk 0:03:36.6]} 17... Qg6 {[%clk 0:03:36.6]}
18. Ne5+ {[%clk 0:03:34.9]} 1-0

[Event "Live Chess"]
[Site "Chess.com"]
[Date "2023.05.21"]
[Round "-"]
[White "Singapourfeuj"]
[Black "ViktorTheCoolBoy"]
[Result "0-1"]
[WhiteElo "2151"]
[BlackElo "2509"]
[TimeControl "300"]
[EndTime "19:12:15 PDT"]
[Termination "ViktorTheCoolBoy won by resignation"]

1. e4 {[%clk 0:04:58.4]} 1... e5 {[%clk 0:04:58.7]} 2. Nf3 {[%clk 0:04:57]} 2...
Nc6 {[%clk 0:04:57.5]} 3. Bb5 {[%clk 0:04:55.7]} 3... Nf6 {[%clk 0:04:54.1]} 4.
O-O {[%clk 0:04:54.4]} 4... Nxe4 {[%clk 0:04:51.1]} 5. Re1 {[%clk 0:04:50.9]}
5... Nd6 {[%clk 0:04:49.3]} 6. Nxe5 {[%clk 0:04:48.3]} 6... Be7 {[%clk
0:04:46.9]} 7. Ba4 {[%clk 0:04:45.5]} 7... O-O {[%clk 0:04:45.2]} 8. d4 {[%clk
0:04:37.4]} 8... Nf5 {[%clk 0:04:41.8]} 9. c3 {[%clk 0:04:35.6]} 9... Nxe5
{[%clk 0:04:36.6]} 10. dxe5 {[%clk 0:04:34.6]} 10... d5 {[%clk 0:04:34.4]} 11.
Nd2 {[%clk 0:04:30.3]} 11... c5 {[%clk 0:04:32]} 12. Bc2 {[%clk 0:04:28.6]}
12... Be6 {[%clk 0:04:30.5]} 13. Qh5 {[%clk 0:04:26]} 13... g6 {[%clk
0:04:28.7]} 14. Qe2 {[%clk 0:04:22.7]} 14... Qd7 {[%clk 0:04:23.4]} 15. Nf3
{[%clk 0:04:20.8]} 15... Rae8 {[%clk 0:04:18.1]} 16. Ng5 {[%clk 0:04:17.3]}
16... d4 {[%clk 0:04:10.3]} 17. Nxe6 {[%clk 0:04:13.6]} 17... fxe6 {[%clk
0:04:08.9]} 18. Bxf5 {[%clk 0:04:04.7]} 18... Rxf5 {[%clk 0:04:07]} 19. cxd4
{[%clk 0:04:03.8]} 19... cxd4 {[%clk 0:04:05.7]} 20. Bd2 {[%clk 0:04:02.1]}
20... Ref8 {[%clk 0:04:03.3]} 21. f3 {[%clk 0:04:00.4]} 21... d3 {[%clk
0:04:00.8]} 22. Qe4 {[%clk 0:03:57.9]} 22... Bc5+ {[%clk 0:03:58.2]} 23. Kh1
{[%clk 0:03:57.2]} 23... Bb6 {[%clk 0:03:44]} 24. Rad1 {[%clk 0:03:54.8]} 24...
Rc8 {[%clk 0:03:41.9]} 25. Bc3 {[%clk 0:03:53.5]} 25... Rd8 {[%clk 0:03:35.1]}
26. g4 {[%clk 0:03:45.7]} 26... Rf7 {[%clk 0:03:32.8]} 27. Kg2 {[%clk 0:03:45]}
27... Qb5 {[%clk 0:03:29.9]} 28. a4 {[%clk 0:03:41.6]} 28... Qd7 {[%clk
0:03:23.4]} 29. Rd2 {[%clk 0:03:40.3]} 29... g5 {[%clk 0:03:19.9]} 30. Red1
{[%clk 0:03:38]} 30... Rf4 {[%clk 0:03:17.8]} 31. Qxd3 {[%clk 0:03:36.8]} 31...
Qxa4 {[%clk 0:03:11.7]} 32. Qxd8+ {[%clk 0:03:34.5]} 32... Bxd8 {[%clk 0:03:10]}
33. Rxd8+ {[%clk 0:03:33.2]} 33... Rf8 {[%clk 0:03:09.2]} 34. Rxf8+ {[%clk
0:03:29.7]} 34... Kxf8 {[%clk 0:03:09.1]} 35. Rd6 {[%clk 0:03:24.3]} 35... b5
{[%clk 0:03:06.2]} 36. Rxe6 {[%clk 0:03:19.6]} 36... b4 {[%clk 0:03:04.6]} 37.
Bd4 {[%clk 0:03:18.5]} 37... Qc2+ {[%clk 0:02:56.2]} 38. Kg3 {[%clk 0:03:17.3]}
38... Qd1 {[%clk 0:02:55.2]} 39. Rd6 {[%clk 0:03:14.8]} 39... a5 {[%clk
0:02:52.5]} 40. e6 {[%clk 0:03:13.5]} 40... Qe1+ {[%clk 0:02:50.1]} 41. Bf2
{[%clk 0:03:11]} 41... Qe5+ {[%clk 0:02:48.5]} 42. Kg2 {[%clk 0:03:09.6]} 42...
Qxd6 {[%clk 0:02:47.5]} 43. h4 {[%clk 0:03:08.8]} 43... Qxe6 {[%clk 0:02:46.6]}
44. hxg5 {[%clk 0:03:08]} 44... a4 {[%clk 0:02:45]} 45. Bd4 {[%clk 0:03:05.1]}
45... Kf7 {[%clk 0:02:41.5]} 46. Kg3 {[%clk 0:03:03.2]} 46... a3 {[%clk
0:02:40.3]} 47. bxa3 {[%clk 0:03:02.1]} 47... bxa3 {[%clk 0:02:40.2]} 48. f4
{[%clk 0:03:00.5]} 48... Qb3+ {[%clk 0:02:38.6]} 49. Kh4 {[%clk 0:02:58.7]}
49... Qb2 {[%clk 0:02:36.9]} 50. g6+ {[%clk 0:02:56.6]} 50... hxg6 {[%clk
0:02:35.3]} 51. f5 {[%clk 0:02:55.4]} 51... Qxd4 {[%clk 0:02:33.8]} 52. fxg6+
{[%clk 0:02:54]} 52... Kxg6 {[%clk 0:02:30.5]} 0-1

[Event "Live Chess"]
[Site "Chess.com"]
[Date "2023.05.21"]
[Round "-"]
[White "IgorSchukin"]
[Black "wot-not"]
[Result "1-0"]
[WhiteElo "1791"]
[BlackElo "1560"]
[TimeControl "300"]
[EndTime "19:12:26 PDT"]
[Termination "IgorSchukin won by resignation"]

1. e4 {[%clk 0:04:58.7]} 1... e6 {[%clk 0:04:57.9]} 2. Nf3 {[%clk 0:04:57.2]}
2... d5 {[%clk 0:04:57.7]} 3. Nc3 {[%clk 0:04:56.4]} 3... dxe4 {[%clk
0:04:54.4]} 4. Nxe4 {[%clk 0:04:55.3]} 4... Nf6 {[%clk 0:04:54.2]} 5. Nxf6+
{[%clk 0:04:54.4]} 5... Qxf6 {[%clk 0:04:52.7]} 6. d4 {[%clk 0:04:53.5]} 6... h6
{[%clk 0:04:42.9]} 7. Bd3 {[%clk 0:04:51.8]} 7... Bd6 {[%clk 0:04:39.7]} 8. c3
{[%clk 0:04:44]} 8... O-O {[%clk 0:04:38.3]} 9. O-O {[%clk 0:04:40.2]} 9... Bd7
{[%clk 0:04:32.8]} 10. Re1 {[%clk 0:04:38.3]} 10... Bc6 {[%clk 0:04:31.6]} 11.
Ne5 {[%clk 0:04:35.4]} 11... Nd7 {[%clk 0:04:18.6]} 12. Nxc6 {[%clk 0:04:33.6]}
12... bxc6 {[%clk 0:04:17.4]} 13. g3 {[%clk 0:04:25.8]} 13... e5 {[%clk
0:03:59]} 14. Be3 {[%clk 0:04:20.4]} 14... Rae8 {[%clk 0:03:49.2]} 15. Bf1
{[%clk 0:04:11.7]} 15... c5 {[%clk 0:03:45.6]} 16. Bg2 {[%clk 0:04:07.5]} 16...
exd4 {[%clk 0:03:41.9]} 17. cxd4 {[%clk 0:04:05.9]} 17... cxd4 {[%clk
0:03:33.3]} 18. Qxd4 {[%clk 0:04:03.1]} 18... Qxd4 {[%clk 0:03:31.2]} 19. Bxd4
{[%clk 0:04:02.1]} 19... Rxe1+ {[%clk 0:03:28.7]} 20. Rxe1 {[%clk 0:04:00.2]}
20... Bc5 {[%clk 0:03:24.1]} 21. Bxc5 {[%clk 0:03:56.7]} 21... Nxc5 {[%clk
0:03:23.3]} 22. Rc1 {[%clk 0:03:55.4]} 22... Nd3 {[%clk 0:03:20]} 23. Rxc7
{[%clk 0:03:51]} 23... Nxb2 {[%clk 0:03:18.7]} 24. Rxa7 {[%clk 0:03:49.8]} 24...
Re8 {[%clk 0:03:16.2]} 25. Ra8 {[%clk 0:03:48.3]} 25... Rxa8 {[%clk 0:03:13.9]}
26. Bxa8 {[%clk 0:03:47.2]} 26... Nc4 {[%clk 0:03:09.7]} 27. Bd5 {[%clk
0:03:44.3]} 27... Na3 {[%clk 0:03:08.1]} 28. f4 {[%clk 0:03:41.3]} 28... Kf8
{[%clk 0:03:07.8]} 29. Kf2 {[%clk 0:03:39.6]} 29... Ke7 {[%clk 0:03:07.5]} 30.
Ke3 {[%clk 0:03:38.2]} 30... f6 {[%clk 0:03:07.2]} 31. Kd4 {[%clk 0:03:36.5]}
31... Kd6 {[%clk 0:03:06.9]} 32. Bb3 {[%clk 0:03:33.6]} 32... Nb5+ {[%clk
0:03:03.2]} 33. Ke4 {[%clk 0:03:32.3]} 33... Nc3+ {[%clk 0:02:59.6]} 34. Kf5
{[%clk 0:03:31]} 34... Ke7 {[%clk 0:02:54.4]} 35. Kg6 {[%clk 0:03:29.4]} 35...
Kf8 {[%clk 0:02:53.8]} 36. g4 {[%clk 0:03:22.4]} 36... Ne2 {[%clk 0:02:50.9]}
37. f5 {[%clk 0:03:18.2]} 37... Nf4+ {[%clk 0:02:46.7]} 38. Kh7 {[%clk
0:03:17.1]} 38... Nh3 {[%clk 0:02:41]} 39. a4 {[%clk 0:03:13.2]} 39... Nf2
{[%clk 0:02:34.1]} 40. a5 {[%clk 0:03:09.4]} 40... Nxg4 {[%clk 0:02:25.6]} 41.
a6 {[%clk 0:03:06.6]} 41... Ne3 {[%clk 0:02:25.3]} 42. a7 {[%clk 0:03:02.7]}
42... Nxf5 {[%clk 0:02:25.1]} 43. a8=Q+ {[%clk 0:03:01.1]} 43... Ke7 {[%clk
0:02:21]} 44. Qb7+ {[%clk 0:02:55.4]} 44... Kd6 {[%clk 0:02:20.3]} 45. Qd5+
{[%clk 0:02:52.2]} 1-0

[Event "Live Chess"]
[Site "Chess.com"]
[Date "2023.05.21"]
[Round "-"]
[White "whatnot126"]
[Black "xx_blindpuffin_xx"]
[Result "1-0"]
[WhiteElo "2067"]
[BlackElo "2170"]
[TimeControl "300"]
[EndTime "19:12:26 PDT"]
[Termination "whatnot126 won by resignation"]

1. e4 {[%clk 0:04:59.5]} 1... c6 {[%clk 0:04:56.4]} 2. Nc3 {[%clk 0:04:58.4]}
2... d5 {[%clk 0:04:56.3]} 3. Nf3 {[%clk 0:04:57.9]} 3... Bg4 {[%clk 0:04:51.6]}
4. Be2 {[%clk 0:04:56.9]} 4... e6 {[%clk 0:04:49.5]} 5. d4 {[%clk 0:04:55.6]}
5... Nd7 {[%clk 0:04:42.5]} 6. Ng5 {[%clk 0:04:46.9]} 6... Bxe2 {[%clk
0:04:36.2]} 7. Qxe2 {[%clk 0:04:46.8]} 7... Be7 {[%clk 0:04:31.6]} 8. Qh5 {[%clk
0:04:43.6]} 8... g6 {[%clk 0:04:27.1]} 9. Qg4 {[%clk 0:04:35.5]} 9... Ngf6
{[%clk 0:04:13.1]} 10. Qh3 {[%clk 0:04:34.9]} 10... Nxe4 {[%clk 0:04:04.7]} 11.
Ngxe4 {[%clk 0:04:33.7]} 11... dxe4 {[%clk 0:04:01.6]} 12. Nxe4 {[%clk
0:04:33.6]} 12... Nf6 {[%clk 0:03:58.8]} 13. Nxf6+ {[%clk 0:04:23.3]} 13... Bxf6
{[%clk 0:03:58.7]} 14. Bh6 {[%clk 0:04:21.3]} 14... Qxd4 {[%clk 0:03:50.8]} 15.
O-O {[%clk 0:04:20.6]} 15... O-O-O {[%clk 0:03:46.9]} 16. c3 {[%clk 0:04:18]}
16... Qd3 {[%clk 0:03:42.6]} 17. Qg4 {[%clk 0:04:12]} 17... Kb8 {[%clk
0:03:36.9]} 18. Qf4+ {[%clk 0:03:55.8]} 18... e5 {[%clk 0:03:29.3]} 19. Qxf6
{[%clk 0:03:54.6]} 1-0

[Event "Live Chess"]
[Site "Chess.com"]
[Date "2023.05.21"]
[Round "-"]
[White "Tushinskiy"]
[Black "Duke_of_Bebington"]
[Result "1-0"]
[WhiteElo "2181"]
[BlackElo "1582"]
[TimeControl "300"]
[EndTime "19:12:28 PDT"]
[Termination "Tushinskiy won by resignation"]

1. d4 {[%clk 0:04:57.4]} 1... d5 {[%clk 0:04:56.7]} 2. c3 {[%clk 0:04:57.3]}
2... Bf5 {[%clk 0:04:54.1]} 3. Nf3 {[%clk 0:04:53.5]} 3... Nf6 {[%clk
0:04:52.7]} 4. Bf4 {[%clk 0:04:52.5]} 4... e6 {[%clk 0:04:49.9]} 5. e3 {[%clk
0:04:51.5]} 5... c5 {[%clk 0:04:49.1]} 6. Bd3 {[%clk 0:04:49.6]} 6... Bxd3
{[%clk 0:04:46]} 7. Qxd3 {[%clk 0:04:49.5]} 7... c4 {[%clk 0:04:43.2]} 8. Qc2
{[%clk 0:04:48.3]} 8... b5 {[%clk 0:04:38.2]} 9. Nbd2 {[%clk 0:04:46.7]} 9...
Nc6 {[%clk 0:04:37.1]} 10. e4 {[%clk 0:04:45.3]} 10... b4 {[%clk 0:04:30.5]} 11.
e5 {[%clk 0:04:42.9]} 11... Nd7 {[%clk 0:04:28.5]} 12. O-O {[%clk 0:04:41.1]}
12... Be7 {[%clk 0:04:25.7]} 13. h3 {[%clk 0:04:38.7]} 13... O-O {[%clk
0:04:24.7]} 14. Bg3 {[%clk 0:04:38.1]} 14... a5 {[%clk 0:04:15.6]} 15. Rfb1
{[%clk 0:04:36.3]} 15... a4 {[%clk 0:04:09.5]} 16. Kh2 {[%clk 0:04:33]} 16... b3
{[%clk 0:04:07.9]} 17. axb3 {[%clk 0:04:31.1]} 17... axb3 {[%clk 0:04:06]} 18.
Qd1 {[%clk 0:04:30.4]} 18... h6 {[%clk 0:03:54.7]} 19. Nf1 {[%clk 0:04:27.7]}
19... Nb6 {[%clk 0:03:47.9]} 20. Ne3 {[%clk 0:04:26.4]} 20... Na4 {[%clk
0:03:43.1]} 21. Qd2 {[%clk 0:04:19.7]} 21... f5 {[%clk 0:03:31.7]} 22. exf6
{[%clk 0:04:18]} 22... Bxf6 {[%clk 0:03:29.2]} 23. Re1 {[%clk 0:04:16.7]} 23...
Qd7 {[%clk 0:03:21.3]} 24. Ng4 {[%clk 0:04:14.1]} 24... h5 {[%clk 0:03:06.5]}
25. Nxf6+ {[%clk 0:04:12]} 25... Rxf6 {[%clk 0:03:05.1]} 26. Ne5 {[%clk
0:04:06.5]} 26... Nb6 {[%clk 0:02:57.6]} 27. Rxa8+ {[%clk 0:04:04.1]} 27... Nxa8
{[%clk 0:02:57.5]} 28. Nxd7 {[%clk 0:04:03.3]} 1-0

[Event "Live Chess"]
[Site "Chess.com"]
[Date "2023.05.21"]
[Round "-"]
[White "nigelst"]
[Black "manthanit"]
[Result "1-0"]
[WhiteElo "1747"]
[BlackElo "1054"]
[TimeControl "300"]
[EndTime "19:12:31 PDT"]
[Termination "nigelst won by checkmate"]

1. e4 {[%clk 0:04:58.7]} 1... e6 {[%clk 0:04:58.8]} 2. d4 {[%clk 0:04:57.3]}
2... d5 {[%clk 0:04:58.5]} 3. exd5 {[%clk 0:04:56.4]} 3... exd5 {[%clk
0:04:58.1]} 4. Nf3 {[%clk 0:04:55.8]} 4... Nf6 {[%clk 0:04:57.4]} 5. Bd3 {[%clk
0:04:54.4]} 5... Nbd7 {[%clk 0:04:54.8]} 6. O-O {[%clk 0:04:52.8]} 6... Be7
{[%clk 0:04:54.4]} 7. Re1 {[%clk 0:04:51.3]} 7... O-O {[%clk 0:04:53.9]} 8. c4
{[%clk 0:04:48.3]} 8... dxc4 {[%clk 0:04:51.9]} 9. Bxc4 {[%clk 0:04:47]} 9... c5
{[%clk 0:04:46.3]} 10. d5 {[%clk 0:04:44.7]} 10... b6 {[%clk 0:04:43.8]} 11. Nc3
{[%clk 0:04:42.5]} 11... Bb7 {[%clk 0:04:43.2]} 12. d6 {[%clk 0:04:36.1]} 12...
Bxf3 {[%clk 0:04:36.7]} 13. gxf3 {[%clk 0:04:34.6]} 13... Re8 {[%clk 0:04:17.8]}
14. dxe7 {[%clk 0:04:32.9]} 14... Rxe7 {[%clk 0:04:17]} 15. Rxe7 {[%clk
0:04:31]} 15... Qxe7 {[%clk 0:04:16]} 16. Bg5 {[%clk 0:04:29]} 16... h6 {[%clk
0:03:58.4]} 17. Nd5 {[%clk 0:04:26.8]} 17... Qd8 {[%clk 0:03:45.8]} 18. Bxf6
{[%clk 0:04:20.4]} 18... Nxf6 {[%clk 0:03:44.4]} 19. Nxf6+ {[%clk 0:04:19.1]}
19... Qxf6 {[%clk 0:03:43.4]} 20. Qd5 {[%clk 0:04:11.7]} 20... Rd8 {[%clk
0:03:40]} 21. Qe4 {[%clk 0:04:02]} 21... Qxb2 {[%clk 0:03:31.3]} 22. Re1 {[%clk
0:03:59.9]} 22... Rf8 {[%clk 0:03:19.3]} 23. Re2 {[%clk 0:03:46.7]} 23... Qc1+
{[%clk 0:03:15.6]} 24. Kg2 {[%clk 0:03:45]} 24... Qg5+ {[%clk 0:03:13.7]} 25.
Qg4 {[%clk 0:03:43.4]} 25... Qc1 {[%clk 0:03:03.1]} 26. Re7 {[%clk 0:03:37.4]}
26... Qc2 {[%clk 0:02:12.8]} 27. Rxa7 {[%clk 0:03:23.6]} 27... b5 {[%clk
0:01:13.8]} 28. Bxb5 {[%clk 0:03:18.5]} 28... Rd8 {[%clk 0:01:01.3]} 29. Bc4
{[%clk 0:03:13.7]} 29... Rd4 {[%clk 0:00:52.6]} 30. Bxf7+ {[%clk 0:03:06.5]}
30... Kh7 {[%clk 0:00:51.4]} 31. Qc8 {[%clk 0:02:50.9]} 31... Rd2 {[%clk
0:00:24.3]} 32. Qg8# {[%clk 0:02:46.9]} 1-0

[Event "Live Chess"]
[Site "Chess.com"]
[Date "2023.05.21"]
[Round "-"]
[White "Biranidun"]
[Black "ramses-IIG"]
[Result "1-0"]
[WhiteElo "2549"]
[BlackElo "849"]
[TimeControl "300"]
[EndTime "19:13:29 PDT"]
[Termination "Biranidun won by checkmate"]

1. e4 {[%clk 0:04:55.3]} 1... d5 {[%clk 0:04:59.9]} 2. exd5 {[%clk 0:04:54.3]}
2... Qxd5 {[%clk 0:04:59.8]} 3. Nc3 {[%clk 0:04:53.7]} 3... Qe6+ {[%clk
0:04:59.7]} 4. Be2 {[%clk 0:04:52.7]} 4... Qg6 {[%clk 0:04:59.6]} 5. Nf3 {[%clk
0:04:50.4]} 5... Qxg2 {[%clk 0:04:57.1]} 6. Rg1 {[%clk 0:04:49.7]} 6... Qh3
{[%clk 0:04:57]} 7. d4 {[%clk 0:04:42.9]} 7... c6 {[%clk 0:04:55.9]} 8. d5
{[%clk 0:04:41.1]} 8... e6 {[%clk 0:04:46.3]} 9. dxc6 {[%clk 0:04:37.8]} 9...
Nxc6 {[%clk 0:04:46.2]} 10. Nb5 {[%clk 0:04:37]} 10... Bb4+ {[%clk 0:04:27.3]}
11. Bd2 {[%clk 0:04:34.8]} 11... Bxd2+ {[%clk 0:04:25.5]} 12. Qxd2 {[%clk
0:04:34.7]} 12... Ke7 {[%clk 0:04:08.9]} 13. Qd6+ {[%clk 0:04:33.1]} 13... Kf6
{[%clk 0:04:03.2]} 14. Ng5 {[%clk 0:04:16.4]} 14... Qf5 {[%clk 0:03:45.8]} 15.
Nc7 {[%clk 0:04:10.3]} 15... Qa5+ {[%clk 0:03:02.3]} 16. c3 {[%clk 0:04:08.6]}
16... g6 {[%clk 0:02:39.6]} 17. Ne8+ {[%clk 0:04:06.8]} 17... Kf5 {[%clk
0:02:34.6]} 18. Bd3# {[%clk 0:04:06.3]} 1-0